[Event "Titled Tuesday Blitz July 13 2021"]
[White "Tikhonov, Viacheslav"]
[Black "Sviridova, Vlada"]
[WhiteFideId "44196407"]
[BlackFideId "24109606"]
[WhiteElo "1773"]
[BlackElo "2101"]
[Result "1-0"]
[Round "10"]
[TimeControl "180+1"]
[Date "2021.07.13"]
[WhiteClock "0:00:58"]
[BlackClock "0:00:02"]

1. d4 {[%clk 0:03:00]}  d5 {[%clk 0:02:59]} 2. c4 {[%clk 0:02:55]}  c6 {[%clk 0:02:59]} 3. Nc3 {[%clk 0:02:55]}  Nf6 {[%clk 0:02:59]} 4. Nf3 {[%clk 0:02:55]}  dxc4 {[%clk 0:03:00]} 5. e4 {[%clk 0:02:48]}  b5 {[%clk 0:02:59]} 6. Be2 {[%clk 0:02:48]}  b4 {[%clk 0:02:55]} 7. Na4 {[%clk 0:02:47]}  Nxe4 {[%clk 0:02:55]} 8. Bxc4 {[%clk 0:02:47]}  e6 {[%clk 0:02:49]} 9. Qc2 {[%clk 0:02:45]}  Nf6 {[%clk 0:02:44]} 10. Bf4 {[%clk 0:02:40]}  Be7 {[%clk 0:02:34]} 11. Rc1 {[%clk 0:02:40]}  O-O {[%clk 0:02:20]} 12. O-O {[%clk 0:02:33]}  Nd5 {[%clk 0:01:59]} 13. Bg3 {[%clk 0:02:19]}  Bb7 {[%clk 0:01:51]} 14. Bd3 {[%clk 0:02:18]}  h6 {[%clk 0:01:47]} 15. Ne5 {[%clk 0:02:15]}  Nd7 {[%clk 0:01:06]} 16. Nxc6 {[%clk 0:02:05]}  Bxc6 {[%clk 0:01:06]} 17. Qxc6 {[%clk 0:02:06]}  Rc8 {[%clk 0:01:07]} 18. Qa6 {[%clk 0:02:03]}  N7b6 {[%clk 0:00:24]} 19. Nc5 {[%clk 0:01:53]}  Bxc5 {[%clk 0:00:07]} 20. dxc5 {[%clk 0:01:51]}  Nd7 {[%clk 0:00:07]} 21. c6 {[%clk 0:01:48]}  N7b6 {[%clk 0:00:07]} 22. Bb1 {[%clk 0:01:35]}  Qf6 {[%clk 0:00:06]} 23. Qd3 {[%clk 0:01:28]}  g6 {[%clk 0:00:06]} 24. c7 {[%clk 0:01:28]}  Qxb2 {[%clk 0:00:06]} 25. h4 {[%clk 0:01:20]}  Qf6 {[%clk 0:00:06]} 26. h5 {[%clk 0:01:20]}  Kg7 {[%clk 0:00:06]} 27. hxg6 {[%clk 0:01:20]}  fxg6 {[%clk 0:00:05]} 28. Rfe1 {[%clk 0:01:20]}  Nd7 {[%clk 0:00:05]} 29. Rc6 {[%clk 0:01:16]}  Rfe8 {[%clk 0:00:04]} 30. Rd6 {[%clk 0:01:09]}  Re7 {[%clk 0:00:03]} 31. Rxd7 {[%clk 0:01:01]}  Rxd7 {[%clk 0:00:02]} 32. Be5 {[%clk 0:01:02]}  Kf7 {[%clk 0:00:03]} 33. Bxf6 {[%clk 0:01:02]}  Nxf6 {[%clk 0:00:02]} 34. Qxg6+ {[%clk 0:01:02]}  Ke7 {[%clk 0:00:03]} 35. Qg7+ {[%clk 0:01:02]}  Kd6 {[%clk 0:00:03]} 36. Qxf6 {[%clk 0:01:03]}  Rcxc7 {[%clk 0:00:02]} 37. Qxe6+ {[%clk 0:01:02]}  Kc5 {[%clk 0:00:03]} 38. Rc1+ {[%clk 0:01:00]}  Kb5 {[%clk 0:00:03]} 39. Bd3+ {[%clk 0:00:58]}  Ka5 {[%clk 0:00:02]} 40. Qa6# {[%clk 0:00:58]} 1-0


[Site "https://www.chess.com"]

[Event "Titled Tuesday Blitz July 13 2021"]
[White "Tologon tegin, Semetei"]
[Black "Kavyev, Ruslan"]
[WhiteFideId "13800574"]
[BlackFideId "34110981"]
[WhiteElo "2224"]
[BlackElo "2172"]
[Result "1-0"]
[Round "10"]
[TimeControl "180+1"]
[Date "2021.07.13"]
[WhiteClock "0:00:50"]
[BlackClock "0:00:01"]

1. d4 {[%clk 0:03:00]}  Nf6 {[%clk 0:02:59]} 2. c4 {[%clk 0:03:01]}  g6 {[%clk 0:03:00]} 3. Nc3 {[%clk 0:03:01]}  Bg7 {[%clk 0:03:00]} 4. e4 {[%clk 0:03:00]}  d6 {[%clk 0:03:00]} 5. Nf3 {[%clk 0:03:01]}  O-O {[%clk 0:03:01]} 6. Be2 {[%clk 0:03:01]}  e5 {[%clk 0:03:01]} 7. O-O {[%clk 0:03:02]}  Nc6 {[%clk 0:03:02]} 8. d5 {[%clk 0:03:02]}  Ne7 {[%clk 0:03:02]} 9. b4 {[%clk 0:03:03]}  Nh5 {[%clk 0:03:02]} 10. Re1 {[%clk 0:03:02]}  Nf4 {[%clk 0:03:00]} 11. Bf1 {[%clk 0:03:01]}  h6 {[%clk 0:02:44]} 12. a4 {[%clk 0:03:01]}  a5 {[%clk 0:02:41]} 13. bxa5 {[%clk 0:02:59]}  Rxa5 {[%clk 0:02:41]} 14. Nd2 {[%clk 0:02:56]}  f5 {[%clk 0:02:34]} 15. Nb3 {[%clk 0:02:56]}  Ra8 {[%clk 0:02:33]} 16. f3 {[%clk 0:02:51]}  g5 {[%clk 0:02:18]} 17. c5 {[%clk 0:02:46]}  Nfg6 {[%clk 0:02:08]} 18. cxd6 {[%clk 0:02:41]}  cxd6 {[%clk 0:02:08]} 19. Be3 {[%clk 0:02:41]}  f4 {[%clk 0:02:08]} 20. Bf2 {[%clk 0:02:41]}  h5 {[%clk 0:02:08]} 21. a5 {[%clk 0:02:26]}  g4 {[%clk 0:02:06]} 22. Bb6 {[%clk 0:02:27]}  Qe8 {[%clk 0:01:56]} 23. Nb5 {[%clk 0:02:27]}  gxf3 {[%clk 0:01:45]} 24. Qxf3 {[%clk 0:02:23]}  Bg4 {[%clk 0:01:43]} 25. Qf2 {[%clk 0:02:18]}  f3 {[%clk 0:01:19]} 26. g3 {[%clk 0:02:15]}  Qd7 {[%clk 0:00:49]} 27. Rec1 {[%clk 0:02:13]}  Rac8 {[%clk 0:00:45]} 28. Nc7 {[%clk 0:02:10]}  Bh3 {[%clk 0:00:33]} 29. Bb5 {[%clk 0:02:08]}  Qg4 {[%clk 0:00:33]} 30. Rc4 {[%clk 0:01:55]}  Nf4 {[%clk 0:00:31]} 31. Rc2 {[%clk 0:01:46]}  Neg6 {[%clk 0:00:30]} 32. Ne6 {[%clk 0:01:34]}  Rxc2 {[%clk 0:00:28]} 33. Qxc2 {[%clk 0:01:34]}  Nxe6 {[%clk 0:00:23]} 34. dxe6 {[%clk 0:01:34]}  Nf4 {[%clk 0:00:20]} 35. e7 {[%clk 0:01:29]}  Bg2 {[%clk 0:00:13]} 36. exf8=Q+ {[%clk 0:01:28]}  Bxf8 {[%clk 0:00:14]} 37. Kf2 {[%clk 0:01:10]}  Nh3+ {[%clk 0:00:09]} 38. Ke1 {[%clk 0:01:10]}  f2+ {[%clk 0:00:07]} 39. Bxf2 {[%clk 0:01:09]}  Bxe4 {[%clk 0:00:06]} 40. Bd3 {[%clk 0:01:06]}  Bd5 {[%clk 0:00:05]} 41. Rc1 {[%clk 0:00:57]}  Qf3 {[%clk 0:00:04]} 42. Bc4 {[%clk 0:00:55]}  Nxf2 {[%clk 0:00:01]} 43. Qxf2 {[%clk 0:00:50]} 1-0


[Site "https://www.chess.com"]

[Event "Titled Tuesday Blitz July 13 2021"]
[White "Tomb, Maroun"]
[Black "Aradhya, Garg"]
[WhiteFideId "5300398"]
[BlackFideId "25006746"]
[WhiteElo "2529"]
[BlackElo "2146"]
[Result "1-0"]
[Round "10"]
[TimeControl "180+1"]
[Date "2021.07.13"]
[WhiteClock "0:01:02"]
[BlackClock "0:00:50"]

1. e4 {[%clk 0:03:00]}  e5 {[%clk 0:02:58]} 2. Nf3 {[%clk 0:03:00]}  Nc6 {[%clk 0:02:58]} 3. Bb5 {[%clk 0:03:00]}  a6 {[%clk 0:02:57]} 4. Ba4 {[%clk 0:03:00]}  Nf6 {[%clk 0:02:57]} 5. d4 {[%clk 0:03:00]}  exd4 {[%clk 0:02:55]} 6. O-O {[%clk 0:03:00]}  Be7 {[%clk 0:02:40]} 7. e5 {[%clk 0:03:00]}  Ne4 {[%clk 0:02:39]} 8. Nxd4 {[%clk 0:03:00]}  O-O {[%clk 0:02:34]} 9. Bf4 {[%clk 0:02:51]}  Nc5 {[%clk 0:02:33]} 10. Bb3 {[%clk 0:02:48]}  Nxd4 {[%clk 0:02:33]} 11. Qxd4 {[%clk 0:02:48]}  Ne6 {[%clk 0:02:33]} 12. Qd2 {[%clk 0:02:48]}  Nxf4 {[%clk 0:02:30]} 13. Qxf4 {[%clk 0:02:49]}  d5 {[%clk 0:02:30]} 14. Rd1 {[%clk 0:02:46]}  c6 {[%clk 0:02:29]} 15. c4 {[%clk 0:02:46]}  Be6 {[%clk 0:02:28]} 16. cxd5 {[%clk 0:02:45]}  cxd5 {[%clk 0:02:27]} 17. Nc3 {[%clk 0:02:42]}  d4 {[%clk 0:02:03]} 18. Rxd4 {[%clk 0:02:38]}  Qb6 {[%clk 0:02:02]} 19. Nd5 {[%clk 0:02:22]}  Bxd5 {[%clk 0:02:00]} 20. Rxd5 {[%clk 0:02:23]}  Rac8 {[%clk 0:01:59]} 21. Rad1 {[%clk 0:02:19]}  Rc7 {[%clk 0:01:55]} 22. h4 {[%clk 0:02:18]}  h5 {[%clk 0:01:39]} 23. g3 {[%clk 0:02:12]}  Qb4 {[%clk 0:01:28]} 24. Qxb4 {[%clk 0:01:58]}  Bxb4 {[%clk 0:01:28]} 25. Rd7 {[%clk 0:01:58]}  Ba5 {[%clk 0:01:28]} 26. Kg2 {[%clk 0:01:46]}  b5 {[%clk 0:01:26]} 27. f4 {[%clk 0:01:45]}  g6 {[%clk 0:01:19]} 28. Rxc7 {[%clk 0:01:43]}  Bxc7 {[%clk 0:01:20]} 29. Rd7 {[%clk 0:01:43]}  Bb6 {[%clk 0:01:20]} 30. Rd6 {[%clk 0:01:42]}  Bc5 {[%clk 0:01:16]} 31. Rxa6 {[%clk 0:01:41]}  Rd8 {[%clk 0:01:16]} 32. Rxg6+ {[%clk 0:01:41]}  Kf8 {[%clk 0:01:12]} 33. Rf6 {[%clk 0:01:41]}  Rd2+ {[%clk 0:01:12]} 34. Kf3 {[%clk 0:01:41]}  Rxb2 {[%clk 0:01:12]} 35. Rxf7+ {[%clk 0:01:40]}  Ke8 {[%clk 0:01:12]} 36. Rb7 {[%clk 0:01:38]}  Rf2+ {[%clk 0:01:12]} 37. Ke4 {[%clk 0:01:38]}  Re2+ {[%clk 0:01:12]} 38. Kf5 {[%clk 0:01:38]}  b4 {[%clk 0:01:12]} 39. Ke6 {[%clk 0:01:37]}  Kd8 {[%clk 0:01:13]} 40. f5 {[%clk 0:01:23]}  Re3 {[%clk 0:01:11]} 41. f6 {[%clk 0:01:19]}  Rxg3 {[%clk 0:01:07]} 42. Kd5 {[%clk 0:01:19]}  Bf8 {[%clk 0:01:04]} 43. Rf7 {[%clk 0:01:12]}  Bh6 {[%clk 0:01:01]} 44. e6 {[%clk 0:01:11]}  Rd3+ {[%clk 0:01:00]} 45. Kc4 {[%clk 0:01:08]}  Rh3 {[%clk 0:00:58]} 46. Ba4 {[%clk 0:01:03]}  Rxh4+ {[%clk 0:00:57]} 47. Kd5 {[%clk 0:01:03]}  b3 {[%clk 0:00:50]} 48. e7+ {[%clk 0:01:02]}  Kc7 {[%clk 0:00:50]} 49. e8=Q+ {[%clk 0:01:02]}  Kb6 {[%clk 0:00:50]} 50. Qb5# {[%clk 0:01:02]} 1-0


[Site "https://www.chess.com"]

[Event "Titled Tuesday Blitz July 13 2021"]
[White "Torkkola, Henri"]
[Black "Ambartsumova, Karina"]
[WhiteFideId "507660"]
[BlackFideId "4166299"]
[WhiteElo "2137"]
[BlackElo "2262"]
[Result "1/2-1/2"]
[Round "10"]
[TimeControl "180+1"]
[Date "2021.07.13"]
[WhiteClock "0:00:03"]
[BlackClock "0:00:06"]

1. d4 {[%clk 0:03:00]}  Nf6 {[%clk 0:02:59]} 2. Bf4 {[%clk 0:02:59]}  d5 {[%clk 0:02:58]} 3. e3 {[%clk 0:03:00]}  e6 {[%clk 0:02:58]} 4. Nf3 {[%clk 0:03:00]}  Bd6 {[%clk 0:02:59]} 5. Nbd2 {[%clk 0:03:00]}  O-O {[%clk 0:02:57]} 6. c3 {[%clk 0:02:59]}  c5 {[%clk 0:02:58]} 7. Ne5 {[%clk 0:02:48]}  b6 {[%clk 0:02:58]} 8. h4 {[%clk 0:02:43]}  Qc7 {[%clk 0:02:48]} 9. h5 {[%clk 0:02:40]}  Nfd7 {[%clk 0:02:38]} 10. Ndf3 {[%clk 0:02:35]}  f6 {[%clk 0:02:34]} 11. Nxd7 {[%clk 0:02:33]}  Nxd7 {[%clk 0:02:35]} 12. Bxd6 {[%clk 0:02:29]}  Qxd6 {[%clk 0:02:36]} 13. Bd3 {[%clk 0:02:12]}  e5 {[%clk 0:02:28]} 14. dxe5 {[%clk 0:02:11]}  Nxe5 {[%clk 0:01:55]} 15. Nxe5 {[%clk 0:02:06]}  Qxe5 {[%clk 0:01:55]} 16. Qf3 {[%clk 0:02:00]}  Be6 {[%clk 0:01:48]} 17. O-O-O {[%clk 0:01:55]}  a6 {[%clk 0:01:34]} 18. h6 {[%clk 0:01:48]}  g6 {[%clk 0:01:31]} 19. Bc2 {[%clk 0:01:24]}  b5 {[%clk 0:01:29]} 20. Rd2 {[%clk 0:01:09]}  a5 {[%clk 0:01:12]} 21. Rhd1 {[%clk 0:01:09]}  b4 {[%clk 0:01:07]} 22. e4 {[%clk 0:00:38]}  d4 {[%clk 0:00:43]} 23. cxd4 {[%clk 0:00:38]}  cxd4 {[%clk 0:00:44]} 24. Rxd4 {[%clk 0:00:38]}  Bxa2 {[%clk 0:00:26]} 25. Bb3+ {[%clk 0:00:38]}  Bxb3 {[%clk 0:00:25]} 26. Qxb3+ {[%clk 0:00:39]}  Kh8 {[%clk 0:00:25]} 27. f3 {[%clk 0:00:27]}  Qg5+ {[%clk 0:00:20]} 28. Kb1 {[%clk 0:00:27]}  Qxh6 {[%clk 0:00:18]} 29. Rd7 {[%clk 0:00:26]}  Qh5 {[%clk 0:00:13]} 30. Rc7 {[%clk 0:00:19]}  Rac8 {[%clk 0:00:11]} 31. Qc4 {[%clk 0:00:16]}  Rxc7 {[%clk 0:00:09]} 32. Qxc7 {[%clk 0:00:17]}  Qe5 {[%clk 0:00:08]} 33. Qa7 {[%clk 0:00:12]}  Qh5 {[%clk 0:00:03]} 34. Rd7 {[%clk 0:00:10]}  b3 {[%clk 0:00:04]} 35. Rd1 {[%clk 0:00:09]}  Qe5 {[%clk 0:00:03]} 36. Qb7 {[%clk 0:00:07]}  a4 {[%clk 0:00:03]} 37. Qb4 {[%clk 0:00:06]}  Ra8 {[%clk 0:00:01]} 38. Rd5 {[%clk 0:00:05]}  Qc7 {[%clk 0:00:01]} 39. Qd2 {[%clk 0:00:05]}  Qc2+ {[%clk 0:00:01]} 40. Qxc2 {[%clk 0:00:05]}  bxc2+ {[%clk 0:00:02]} 41. Kxc2 {[%clk 0:00:06]}  Rc8+ {[%clk 0:00:03]} 42. Kd2 {[%clk 0:00:05]}  Rb8 {[%clk 0:00:04]} 43. Kc1 {[%clk 0:00:05]}  Rb4 {[%clk 0:00:04]} 44. Ra5 {[%clk 0:00:04]}  Kg7 {[%clk 0:00:05]} 45. Ra6 {[%clk 0:00:04]}  h5 {[%clk 0:00:05]} 46. Kc2 {[%clk 0:00:05]}  g5 {[%clk 0:00:06]} 47. Kc3 {[%clk 0:00:05]}  Rb3+ {[%clk 0:00:06]} 48. Kc2 {[%clk 0:00:05]}  Re3 {[%clk 0:00:07]} 49. Rxa4 {[%clk 0:00:05]}  Re2+ {[%clk 0:00:07]} 50. Kc3 {[%clk 0:00:06]}  Rxg2 {[%clk 0:00:08]} 51. b4 {[%clk 0:00:06]}  h4 {[%clk 0:00:08]} 52. b5 {[%clk 0:00:07]}  h3 {[%clk 0:00:09]} 53. Ra1 {[%clk 0:00:04]}  Rg3 {[%clk 0:00:09]} 54. b6 {[%clk 0:00:03]}  Rxf3+ {[%clk 0:00:10]} 55. Kc4 {[%clk 0:00:04]}  Rf2 {[%clk 0:00:10]} 56. Kc3 {[%clk 0:00:04]}  Rf3+ {[%clk 0:00:10]} 57. Kc4 {[%clk 0:00:04]}  Rf2 {[%clk 0:00:10]} 58. Kc3 {[%clk 0:00:05]}  h2 {[%clk 0:00:07]} 59. b7 {[%clk 0:00:05]}  Ra2 {[%clk 0:00:07]} 60. b8=Q {[%clk 0:00:02]}  Rxa1 {[%clk 0:00:06]} 61. Qxh2 {[%clk 0:00:03]}  Ra3+ {[%clk 0:00:06]} 62. Kb4 {[%clk 0:00:03]}  Ra7 {[%clk 0:00:06]} 63. Qf2 {[%clk 0:00:03]}  Re7 {[%clk 0:00:06]} 64. Kc5 {[%clk 0:00:03]}  Rxe4 {[%clk 0:00:06]} 65. Qb2 {[%clk 0:00:04]}  Re5+ {[%clk 0:00:06]} 66. Kd6 {[%clk 0:00:04]}  Kg6 {[%clk 0:00:07]} 67. Qc2+ {[%clk 0:00:05]}  Kf7 {[%clk 0:00:07]} 68. Qa2+ {[%clk 0:00:05]}  Kg6 {[%clk 0:00:07]} 69. Qc2+ {[%clk 0:00:05]}  Kg7 {[%clk 0:00:07]} 70. Qa2 {[%clk 0:00:05]}  g4 {[%clk 0:00:07]} 71. Qg2 {[%clk 0:00:05]}  Rg5 {[%clk 0:00:07]} 72. Qg3 {[%clk 0:00:05]}  Kg6 {[%clk 0:00:07]} 73. Ke6 {[%clk 0:00:05]}  Re5+ {[%clk 0:00:07]} 74. Kd6 {[%clk 0:00:06]}  Kg5 {[%clk 0:00:08]} 75. Qg2 {[%clk 0:00:03]}  Re8 {[%clk 0:00:07]} 76. Qd2+ {[%clk 0:00:04]}  Kg6 {[%clk 0:00:07]} 77. Qg2 {[%clk 0:00:04]}  f5 {[%clk 0:00:07]} 78. Qg3 {[%clk 0:00:04]}  Re4 {[%clk 0:00:07]} 79. Kd5 {[%clk 0:00:04]}  Kg5 {[%clk 0:00:08]} 80. Qd6 {[%clk 0:00:04]}  Re2 {[%clk 0:00:05]} 81. Qd8+ {[%clk 0:00:04]}  Kf4 {[%clk 0:00:05]} 82. Qd6+ {[%clk 0:00:04]}  Kf3 {[%clk 0:00:06]} 83. Qf6 {[%clk 0:00:03]}  f4 {[%clk 0:00:06]} 84. Qg5 {[%clk 0:00:03]}  g3 {[%clk 0:00:05]} 85. Kd4 {[%clk 0:00:04]}  Re4+ {[%clk 0:00:05]} 86. Kd3 {[%clk 0:00:04]}  Re3+ {[%clk 0:00:06]} 87. Kd2 {[%clk 0:00:04]}  g2 {[%clk 0:00:06]} 88. Qh5+ {[%clk 0:00:02]}  Kf2 {[%clk 0:00:07]} 89. Qh4+ {[%clk 0:00:02]}  Kf3 {[%clk 0:00:05]} 90. Qh5+ {[%clk 0:00:02]}  Ke4 {[%clk 0:00:06]} 91. Qe8+ {[%clk 0:00:02]}  Kf3 {[%clk 0:00:06]} 92. Qh5+ {[%clk 0:00:03]} 1/2-1/2


[Site "https://www.chess.com"]

[Event "Titled Tuesday Blitz July 13 2021"]
[White "Vasquez Schroeder, Rodrigo"]
[Black "Pridorozhni, Aleksei"]
[WhiteFideId "3400042"]
[BlackFideId "4127870"]
[WhiteElo "2572"]
[BlackElo "2565"]
[Result "1-0"]
[Round "10"]
[TimeControl "180+1"]
[Date "2021.07.13"]
[WhiteClock "0:00:35"]
[BlackClock "0:00:32"]

1. e4 {[%clk 0:03:00]}  c5 {[%clk 0:02:55]} 2. Nf3 {[%clk 0:03:00]}  e6 {[%clk 0:02:55]} 3. d4 {[%clk 0:03:00]}  cxd4 {[%clk 0:02:56]} 4. Nxd4 {[%clk 0:03:00]}  Nf6 {[%clk 0:02:56]} 5. Nc3 {[%clk 0:03:00]}  Nc6 {[%clk 0:02:56]} 6. Ndb5 {[%clk 0:02:59]}  Bc5 {[%clk 0:02:55]} 7. Bf4 {[%clk 0:02:58]}  O-O {[%clk 0:02:50]} 8. Bc7 {[%clk 0:02:58]}  Qe7 {[%clk 0:02:50]} 9. Bd6 {[%clk 0:02:59]}  Bxd6 {[%clk 0:02:51]} 10. Qxd6 {[%clk 0:02:59]}  Qd8 {[%clk 0:02:52]} 11. Qd2 {[%clk 0:02:56]}  d5 {[%clk 0:02:50]} 12. exd5 {[%clk 0:02:54]}  exd5 {[%clk 0:02:49]} 13. O-O-O {[%clk 0:02:54]}  Be6 {[%clk 0:02:46]} 14. f3 {[%clk 0:02:52]}  Rc8 {[%clk 0:02:44]} 15. Kb1 {[%clk 0:02:50]}  a6 {[%clk 0:02:40]} 16. Nd4 {[%clk 0:02:50]}  Qb6 {[%clk 0:02:39]} 17. Be2 {[%clk 0:02:29]}  Ne5 {[%clk 0:02:32]} 18. Rhe1 {[%clk 0:02:27]}  Nc4 {[%clk 0:02:29]} 19. Bxc4 {[%clk 0:02:27]}  Rxc4 {[%clk 0:02:30]} 20. Nce2 {[%clk 0:02:24]}  Rfc8 {[%clk 0:02:26]} 21. c3 {[%clk 0:02:24]}  Bd7 {[%clk 0:02:24]} 22. Ka1 {[%clk 0:02:21]}  Qd6 {[%clk 0:02:20]} 23. Qf4 {[%clk 0:02:12]}  Qxf4 {[%clk 0:02:19]} 24. Nxf4 {[%clk 0:02:11]}  b5 {[%clk 0:02:20]} 25. a3 {[%clk 0:02:10]}  a5 {[%clk 0:02:18]} 26. Nd3 {[%clk 0:02:10]}  Kf8 {[%clk 0:02:12]} 27. Ne5 {[%clk 0:02:06]}  R4c5 {[%clk 0:02:08]} 28. Nb3 {[%clk 0:02:05]}  R5c7 {[%clk 0:02:05]} 29. Nxd7+ {[%clk 0:02:00]}  Rxd7 {[%clk 0:02:06]} 30. Nxa5 {[%clk 0:02:00]}  d4 {[%clk 0:02:06]} 31. Rxd4 {[%clk 0:01:51]}  Rxd4 {[%clk 0:02:06]} 32. cxd4 {[%clk 0:01:52]}  Rc2 {[%clk 0:02:06]} 33. g4 {[%clk 0:01:48]}  Rxh2 {[%clk 0:02:05]} 34. Nb7 {[%clk 0:01:45]}  h5 {[%clk 0:01:59]} 35. Nd6 {[%clk 0:01:37]}  hxg4 {[%clk 0:01:57]} 36. fxg4 {[%clk 0:01:37]}  Rg2 {[%clk 0:01:56]} 37. Nxb5 {[%clk 0:01:33]}  Rxg4 {[%clk 0:01:53]} 38. a4 {[%clk 0:01:28]}  Nd5 {[%clk 0:01:54]} 39. Ka2 {[%clk 0:01:23]}  Rg3 {[%clk 0:01:50]} 40. Rc1 {[%clk 0:01:18]}  Nb4+ {[%clk 0:01:49]} 41. Kb1 {[%clk 0:01:18]}  g5 {[%clk 0:01:49]} 42. a5 {[%clk 0:01:09]}  Rf3 {[%clk 0:01:38]} 43. d5 {[%clk 0:01:07]}  Nxd5 {[%clk 0:01:30]} 44. a6 {[%clk 0:01:05]}  g4 {[%clk 0:01:28]} 45. a7 {[%clk 0:01:03]}  Nb6 {[%clk 0:01:28]} 46. Rc6 {[%clk 0:01:03]}  Rf1+ {[%clk 0:00:34]} 47. Ka2 {[%clk 0:01:02]}  Rf4 {[%clk 0:00:34]} 48. Rxb6 {[%clk 0:00:58]}  Ra4+ {[%clk 0:00:32]} 49. Kb3 {[%clk 0:00:58]}  Rxa7 {[%clk 0:00:32]} 50. Nxa7 {[%clk 0:00:51]}  g3 {[%clk 0:00:33]} 51. Ra6 {[%clk 0:00:42]}  Ke7 {[%clk 0:00:30]} 52. Kc3 {[%clk 0:00:40]}  f5 {[%clk 0:00:28]} 53. Kd3 {[%clk 0:00:40]}  g2 {[%clk 0:00:27]} 54. Ra1 {[%clk 0:00:39]}  f4 {[%clk 0:00:28]} 55. Ke4 {[%clk 0:00:38]}  f3 {[%clk 0:00:29]} 56. Kxf3 {[%clk 0:00:38]}  Kd6 {[%clk 0:00:26]} 57. Kxg2 {[%clk 0:00:38]}  Kd5 {[%clk 0:00:26]} 58. Ra4 {[%clk 0:00:38]}  Kc5 {[%clk 0:00:25]} 59. b3 {[%clk 0:00:38]}  Kb6 {[%clk 0:00:25]} 60. Kf3 {[%clk 0:00:39]}  Kc5 {[%clk 0:00:26]} 61. Ke4 {[%clk 0:00:39]}  Kd6 {[%clk 0:00:26]} 62. Kd4 {[%clk 0:00:39]}  Ke6 {[%clk 0:00:26]} 63. Ra6+ {[%clk 0:00:38]}  Kf5 {[%clk 0:00:27]} 64. b4 {[%clk 0:00:37]}  Kg5 {[%clk 0:00:28]} 65. b5 {[%clk 0:00:37]}  Kf5 {[%clk 0:00:29]} 66. b6 {[%clk 0:00:37]}  Ke6 {[%clk 0:00:29]} 67. b7+ {[%clk 0:00:38]}  Kf5 {[%clk 0:00:28]} 68. b8=Q {[%clk 0:00:36]}  Kg4 {[%clk 0:00:29]} 69. Qg8+ {[%clk 0:00:36]}  Kf3 {[%clk 0:00:30]} 70. Rf6+ {[%clk 0:00:35]}  Ke2 {[%clk 0:00:31]} 71. Qg2+ {[%clk 0:00:35]}  Kd1 {[%clk 0:00:32]} 72. Rf1# {[%clk 0:00:35]} 1-0


[Site "https://www.chess.com"]

[Event "Titled Tuesday Blitz July 13 2021"]
[White "Viskelis, Darius"]
[Black "Vlassov, Nikolai"]
[WhiteFideId "12800830"]
[BlackFideId "4103360"]
[WhiteElo "2006"]
[BlackElo "2407"]
[Result "0-1"]
[Round "10"]
[TimeControl "180+1"]
[Date "2021.07.13"]
[WhiteClock "0:00:29"]
[BlackClock "0:02:07"]

1. e4 {[%clk 0:03:00]}  Nc6 {[%clk 0:02:59]} 2. Nf3 {[%clk 0:03:00]}  d5 {[%clk 0:02:59]} 3. exd5 {[%clk 0:02:59]}  Qxd5 {[%clk 0:03:00]} 4. Nc3 {[%clk 0:02:59]}  Qa5 {[%clk 0:03:01]} 5. Bb5 {[%clk 0:02:59]}  Bd7 {[%clk 0:03:01]} 6. O-O {[%clk 0:02:58]}  a6 {[%clk 0:03:01]} 7. Ba4 {[%clk 0:02:53]}  Nf6 {[%clk 0:03:00]} 8. d4 {[%clk 0:02:50]}  O-O-O {[%clk 0:02:55]} 9. a3 {[%clk 0:02:35]}  Qh5 {[%clk 0:02:46]} 10. Bf4 {[%clk 0:02:32]}  b5 {[%clk 0:02:40]} 11. Bb3 {[%clk 0:02:23]}  Bg4 {[%clk 0:02:39]} 12. d5 {[%clk 0:02:05]}  e5 {[%clk 0:02:39]} 13. Bg3 {[%clk 0:01:34]}  Nd4 {[%clk 0:02:31]} 14. Nxe5 {[%clk 0:00:49]}  Bxd1 {[%clk 0:02:26]} 15. Raxd1 {[%clk 0:00:49]}  Nxb3 {[%clk 0:02:24]} 16. cxb3 {[%clk 0:00:49]}  Bd6 {[%clk 0:02:22]} 17. f4 {[%clk 0:00:36]}  Ng4 {[%clk 0:02:14]} 18. Nc6 {[%clk 0:00:29]}  Ne3 {[%clk 0:02:07]} 0-1


[Site "https://www.chess.com"]

[Event "Titled Tuesday Blitz July 13 2021"]
[White "Vovk, Orest"]
[Black "Pert, Richard G"]
[WhiteFideId "14113490"]
[BlackFideId "404748"]
[WhiteElo "2203"]
[BlackElo "2441"]
[Result "1-0"]
[Round "10"]
[TimeControl "180+1"]
[Date "2021.07.13"]
[WhiteClock "0:00:15"]
[BlackClock "0:00:01"]

1. g4 {[%clk 0:03:00]}  e5 {[%clk 0:02:55]} 2. g5 {[%clk 0:02:53]}  Nc6 {[%clk 0:02:54]} 3. h4 {[%clk 0:02:52]}  d5 {[%clk 0:02:53]} 4. Bg2 {[%clk 0:02:51]}  Bc5 {[%clk 0:02:52]} 5. c4 {[%clk 0:02:50]}  dxc4 {[%clk 0:02:49]} 6. Bxc6+ {[%clk 0:02:50]}  bxc6 {[%clk 0:02:49]} 7. Qa4 {[%clk 0:02:49]}  Ne7 {[%clk 0:02:34]} 8. Qxc4 {[%clk 0:02:46]}  Bb6 {[%clk 0:02:32]} 9. d3 {[%clk 0:02:41]}  Be6 {[%clk 0:02:32]} 10. Qa4 {[%clk 0:02:39]}  O-O {[%clk 0:02:17]} 11. Nc3 {[%clk 0:02:34]}  Nf5 {[%clk 0:02:13]} 12. Nf3 {[%clk 0:02:28]}  Nd4 {[%clk 0:01:59]} 13. Nxd4 {[%clk 0:02:09]}  exd4 {[%clk 0:01:57]} 14. Ne4 {[%clk 0:02:08]}  Bd5 {[%clk 0:01:49]} 15. f3 {[%clk 0:02:08]}  c5 {[%clk 0:01:46]} 16. b3 {[%clk 0:02:03]}  c6 {[%clk 0:01:43]} 17. Bd2 {[%clk 0:01:54]}  Rb8 {[%clk 0:01:36]} 18. h5 {[%clk 0:01:50]}  Bxe4 {[%clk 0:01:20]} 19. fxe4 {[%clk 0:01:49]}  Bc7 {[%clk 0:01:10]} 20. Qc4 {[%clk 0:01:41]}  Bg3+ {[%clk 0:01:09]} 21. Kd1 {[%clk 0:01:41]}  Kh8 {[%clk 0:01:02]} 22. g6 {[%clk 0:01:32]}  f5 {[%clk 0:00:58]} 23. h6 {[%clk 0:01:17]}  f4 {[%clk 0:00:58]} 24. hxg7+ {[%clk 0:01:08]}  Kxg7 {[%clk 0:00:59]} 25. Rxh7+ {[%clk 0:00:58]}  Kxg6 {[%clk 0:00:59]} 26. Rxa7 {[%clk 0:00:58]}  Rh8 {[%clk 0:00:36]} 27. Qe6+ {[%clk 0:00:50]}  Qf6 {[%clk 0:00:35]} 28. Qg4+ {[%clk 0:00:49]}  Kh6 {[%clk 0:00:34]} 29. Qxg3 {[%clk 0:00:41]}  Rbg8 {[%clk 0:00:28]} 30. Qxf4+ {[%clk 0:00:38]}  Qxf4 {[%clk 0:00:28]} 31. Bxf4+ {[%clk 0:00:38]}  Kh5 {[%clk 0:00:29]} 32. Kd2 {[%clk 0:00:38]}  Kg4 {[%clk 0:00:29]} 33. Be5 {[%clk 0:00:35]}  Rh5 {[%clk 0:00:28]} 34. Rg1+ {[%clk 0:00:33]}  Kh3 {[%clk 0:00:27]} 35. Rxg8 {[%clk 0:00:31]}  c4 {[%clk 0:00:26]} 36. bxc4 {[%clk 0:00:28]}  c5 {[%clk 0:00:26]} 37. Rag7 {[%clk 0:00:22]}  Rh6 {[%clk 0:00:19]} 38. Rg3+ {[%clk 0:00:21]}  Kh4 {[%clk 0:00:19]} 39. Rg1 {[%clk 0:00:17]}  Rg6 {[%clk 0:00:01]} 40. Rh8+ {[%clk 0:00:15]} 1-0


[Site "https://www.chess.com"]